bitfinex-derivatives/quotes_BTCF0:USTF0_20241110
["timestamp","ask_amount","ask_price","bid_price","bid_amount"]
[1731251002510,0.062798,79553.0,79546.0,0.3608]
[1731251002710,0.0628,79550.0,79546.0,0.3608]
[1731251003217,0.062802,79547.0,79546.0,0.3608]
[1731251003401,0.12784,79552.0,79533.0,0.00012825]
[1731251003402,0.00634173,79549.0,79533.0,0.00012825]
[1731251003705,0.12739866,79534.0,79533.0,0.00012825]
[1731251004302,0.12784,79538.0,79533.0,0.00012825]
[1731251005910,0.1857,79544.0,79533.0,0.00012825]
[1731251006118,0.12784,79548.0,79539.0,0.423608]
[1731251006319,0.190641,79548.0,79539.0,0.423608]
[1731251007214,0.190641,79548.0,79540.0,0.062807]
[1731251007715,0.3608,79552.0,79547.0,0.062802]
[1731251007907,0.00188668,79556.0,79551.0,0.3608]
[1731251008219,0.00188668,79556.0,79555.0,0.062796]
[1731251008913,0.15298001,79571.0,79555.0,0.37708]
[1731251009118,0.02514001,79571.0,79567.0,0.3608]
[1731251009514,0.24898,79575.0,79567.0,0.3608]
[1731251009913,0.062782,79572.0,79567.0,0.3608]
[1731251010217,0.062784,79570.0,79558.0,0.3608]
[1731251010415,0.062784,79570.0,79561.0,0.062791]
[1731251010816,0.12739866,79564.0,79558.0,0.3608]
[1731251011112,0.062792,79560.0,79551.0,0.3608]
[1731251011710,0.062792,79560.0,79551.0,0.423599]
[1731251012710,0.062792,79560.0,79551.0,0.3608]
[1731251012920,0.12784,79564.0,79551.0,0.3608]
[1731251013820,0.062791,79562.0,79551.0,0.3608]
[1731251014010,0.062791,79562.0,79554.0,0.062796]
[1731251014819,0.12784,79564.0,79554.0,0.062796]
[1731251015023,0.062794,79558.0,79551.0,0.3608]
[1731251015213,0.12784,79564.0,79551.0,0.3608]
[1731251015416,0.190629,79564.0,79551.0,0.3608]
[1731251016019,0.190629,79564.0,79558.0,0.062793]
[1731251016216,0.190629,79564.0,79558.0,0.423593]
[1731251017319,0.12784,79564.0,79560.0,0.062792]
[1731251017728,0.02153409,79570.0,79558.0,0.3608]
[1731251018021,0.02153409,79570.0,79560.0,0.062791]
[1731251018022,0.190704,79570.0,79560.0,0.062791]
[1731251018219,0.190704,79570.0,79568.0,0.3608]
[1731251018423,0.12792,79570.0,79568.0,0.3608]
[1731251018825,0.02514001,79574.0,79572.0,0.062782]
[1731251019019,0.190695,79582.0,79573.0,0.062781]
[1731251019215,0.1885,79589.0,79577.0,0.3608]
[1731251019518,0.3608,79613.0,79584.0,0.062773]
[1731251019519,0.062766,79593.0,79584.0,0.062773]
[1731251019729,0.19016766,79590.0,79584.0,0.3608]
[1731251019938,0.06277,79589.0,79576.0,0.062779]
[1731251020220,0.062771,79587.0,79576.0,0.062779]
[1731251020633,0.362771,79587.0,79576.0,0.062779]
[1731251020815,0.3608,79580.0,79564.0,0.3608]
[1731251021020,0.12739866,79567.0,79564.0,0.3608]
[1731251021223,0.062787,79566.0,79564.0,0.3608]
[1731251021436,0.12739866,79567.0,79554.0,0.36148]
[1731251021723,0.12739866,79567.0,79554.0,0.3608]
[1731251021928,0.12792,79566.0,79554.0,0.3608]
[1731251022633,0.19019266,79557.0,79554.0,0.3608]
[1731251022928,0.12739866,79557.0,79554.0,0.3608]
[1731251023724,0.12739866,79557.0,79545.0,0.3608]
[1731251023923,0.062795,79556.0,79538.0,0.5473]
[1731251024127,0.244795,79556.0,79538.0,0.5473]
[1731251024926,0.244795,79556.0,79538.0,0.610109]
[1731251025223,0.244795,79556.0,79539.0,0.062808]
[1731251026330,0.062808,79539.0,79538.0,0.3608]
[1731251026920,0.255608,79539.0,79538.0,0.3608]
[1731251027634,0.062812,79534.0,79533.0,0.00012825]
[1731251027932,0.56996,79539.0,79518.0,0.3608]
[1731251027933,0.062817,79528.0,79518.0,0.3608]
[1731251028127,0.190737,79528.0,79518.0,0.3608]
[1731251028636,0.190737,79528.0,79516.0,0.02515217]
[1731251029626,0.12792,79528.0,79519.0,0.3608]
[1731251029828,0.12792,79529.0,79526.0,0.3608]
[1731251030130,0.1909057,79533.0,79526.0,0.3608]
[1731251030331,0.12792,79532.0,79528.0,0.062817]
[1731251031144,0.0001057,79533.0,79531.0,0.062814]
[1731251031537,0.0001057,79533.0,79528.0,0.5422]
[1731251031538,0.38182,79550.0,79528.0,0.72464]
[1731251031839,0.12739866,79545.0,79536.0,0.3608]
[1731251032335,0.19020266,79545.0,79536.0,0.3608]
[1731251032543,0.02520971,79544.0,79536.0,0.3608]
[1731251032735,0.062808,79540.0,79536.0,0.3608]
[1731251033040,0.062808,79540.0,79529.0,0.062816]
[1731251033338,0.062811,79536.0,79528.0,0.36144]
[1731251033638,0.12739866,79529.0,79528.0,0.3608]
[1731251034343,0.30929866,79529.0,79528.0,0.3608]
[1731251036341,0.062817,79528.0,79527.0,0.00234]
[1731251038449,0.062817,79528.0,79527.0,0.02748869]
[1731251038750,0.12796,79528.0,79527.0,0.02748869]
[1731251039346,0.12796,79528.0,79527.0,0.02514869]
[1731251040451,0.02515199,79531.0,79527.0,0.02514869]
[1731251040757,0.12796,79530.0,79528.0,0.062816]
[1731251041859,0.12796,79539.0,79532.0,0.062814]
[1731251042048,0.062809,79538.0,79534.0,0.3608]
[1731251042244,0.062811,79536.0,79534.0,0.3608]
[1731251042548,0.21535969,79536.0,79534.0,0.3608]
[1731251043862,0.08796103,79536.0,79534.0,0.3608]
[1731251044361,0.02515003,79536.0,79534.0,0.3608]
[1731251044655,6.075e-05,79544.0,79534.0,0.3608]
[1731251044854,6.075e-05,79544.0,79543.0,0.3608]
[1731251045367,6.075e-05,79544.0,79536.0,0.06281]
[1731251045660,6.075e-05,79544.0,79535.0,0.37854]
[1731251045846,6.075e-05,79544.0,79534.0,0.423612]
[1731251046456,6.075e-05,79544.0,79542.0,0.3608]
[1731251047550,6.075e-05,79544.0,79541.0,0.062807]
[1731251047858,6.075e-05,79544.0,79542.0,0.062805]
[1731251048355,6.075e-05,79544.0,79541.0,0.3608]
[1731251048749,0.062806,79543.0,79541.0,0.3608]
[1731251048950,0.06281,79538.0,79534.0,0.02514647]
[1731251049255,0.062811,79536.0,79534.0,0.02514647]
[1731251049864,0.12788,79538.0,79534.0,0.02514647]
[1731251049865,0.062811,79535.0,79534.0,0.02514647]
[1731251052064,0.181,79537.0,79534.0,0.38594647]
[1731251052861,0.24381,79537.0,79534.0,0.38594647]
[1731251053569,0.062811,79536.0,79534.0,0.38594647]
[1731251053872,0.12788,79535.0,79534.0,0.38594647]
[1731251054871,0.12788,79543.0,79538.0,0.062809]
[1731251055080,0.12788,79543.0,79542.0,0.423606]
[1731251055374,0.0211573,79556.0,79543.0,0.062805]
[1731251055562,0.02514896,79557.0,79543.0,0.062805]
[1731251055966,0.08794396,79557.0,79543.0,0.062805]
[1731251056265,0.062795,79556.0,79543.0,0.062805]
[1731251056567,0.062796,79555.0,79543.0,0.062805]
[1731251056769,0.02514896,79557.0,79543.0,0.062805]
[1731251056971,0.062797,79554.0,79543.0,0.062805]
[1731251057163,0.02514896,79557.0,79543.0,0.062805]
[1731251058462,0.12976627,79561.0,79543.0,0.439965]
[1731251060373,7.5e-07,79544.0,79543.0,0.439965]
[1731251066073,0.00188627,79561.0,79543.0,0.739965]
[1731251066378,0.271038,79628.0,79582.0,0.062774]
[1731251066379,0.3577,79588.0,79582.0,0.062774]
[1731251066675,0.3577,79588.0,79582.0,0.423574]
[1731251067581,0.062771,79587.0,79582.0,0.423574]
[1731251069971,0.0844306,79587.0,79582.0,0.423574]
[1731251070681,0.062771,79586.0,79582.0,0.423574]
[1731251073185,0.37939346,79588.0,79582.0,0.423574]
[1731251073366,0.37939346,79588.0,79587.0,0.06277]
[1731251074575,0.37939346,79588.0,79574.0,0.3608]
[1731251074576,0.50679212,79588.0,79574.0,0.3608]
[1731251074777,0.56956212,79588.0,79582.0,0.3608]
[1731251075170,0.50679212,79588.0,79582.0,0.3608]
[1731251075374,0.062771,79586.0,79582.0,0.3608]
[1731251075884,0.53272184,79588.0,79582.0,0.423574]
[1731251076072,0.53192184,79588.0,79582.0,0.423574]
[1731251076278,0.53192184,79588.0,79583.0,0.062773]
[1731251077175,0.53192184,79588.0,79584.0,0.062772]
[1731251077377,0.40452318,79588.0,79587.0,0.06277]
[1731251077884,0.12739866,79604.0,79587.0,0.06277]
[1731251077885,0.12739866,79612.0,79595.0,0.062764]
[1731251078188,0.12739866,79612.0,79602.0,0.423559]
[1731251078189,0.02512972,79603.0,79602.0,0.423559]
[1731251078480,0.15252838,79603.0,79602.0,0.423559]
[1731251078887,0.10998692,79603.0,79602.0,0.423559]
[1731251079489,0.10998692,79603.0,79602.0,0.3608]
[1731251079780,0.06276,79601.0,79595.0,0.3608]
[1731251079985,0.0848572,79596.0,79595.0,0.3608]
[1731251080289,0.0848572,79596.0,79595.0,0.423564]
[1731251080788,0.12731138,79600.0,79595.0,0.423564]
[1731251081280,0.12731138,79600.0,79595.0,0.3608]
[1731251081486,0.12731138,79600.0,79596.0,0.062763]
[1731251082091,0.062763,79596.0,79595.0,0.3608]
[1731251082477,0.12731138,79600.0,79595.0,0.3608]
[1731251082780,0.04647884,79603.0,79598.0,0.062762]
[1731251082781,0.1278,79599.0,79598.0,0.062762]
[1731251084883,0.02130681,79600.0,79595.0,0.3608]
[1731251085092,0.08788772,79603.0,79599.0,0.062761]
[1731251085382,0.062759,79601.0,79599.0,0.052711]
[1731251085596,0.19007138,79600.0,79595.0,0.3608]
[1731251085777,0.12731138,79600.0,79595.0,0.3608]
[1731251086181,0.062762,79598.0,79595.0,0.3608]
[1731251086781,0.062762,79598.0,79587.0,0.02512973]
[1731251087088,0.062762,79598.0,79593.0,0.3608]
[1731251087388,0.062763,79597.0,79593.0,0.3608]
[1731251087682,0.12731138,79600.0,79593.0,0.3608]
[1731251087885,0.062764,79595.0,79593.0,0.3608]
[1731251088080,0.3645,79594.0,79593.0,0.3608]
[1731251088584,0.427265,79594.0,79593.0,0.3608]
[1731251089476,0.3645,79594.0,79593.0,0.3608]
[1731251090281,0.427265,79594.0,79593.0,0.3608]
[1731251090490,0.427265,79594.0,79587.0,0.08789973]
[1731251090699,0.12731138,79590.0,79587.0,0.08789973]
[1731251091584,0.06277,79588.0,79587.0,0.02512973]
[1731251091778,0.06277,79588.0,79570.0,0.03753725]
[1731251091779,0.12731138,79588.0,79570.0,0.03753725]
[1731251091990,0.3608,79585.0,79567.0,0.00313]
[1731251092187,0.12731138,79571.0,79567.0,0.00313]
[1731251092388,0.12731138,79571.0,79569.0,0.062784]
[1731251092999,0.15872138,79571.0,79569.0,0.062784]
[1731251093288,0.15872138,79571.0,79570.0,0.062784]
[1731251093486,0.15872138,79571.0,79567.0,0.00313]
[1731251094082,0.15872138,79571.0,79568.0,0.062785]
[1731251094287,0.15872138,79571.0,79567.0,0.00313]
[1731251094488,0.062784,79570.0,79567.0,0.00313]
[1731251094693,0.15872138,79571.0,79567.0,0.00313]
[1731251094894,0.062785,79568.0,79567.0,0.00313]
[1731251098299,0.00896,79569.0,79567.0,0.00313]
[1731251099781,0.071745,79569.0,79567.0,0.00313]
[1731251100385,0.062785,79568.0,79567.0,0.00313]
[1731251100788,0.14772539,79568.0,79567.0,0.00313]
[1731251101387,0.00896,79569.0,79568.0,0.062785]
[1731251102091,0.00896,79569.0,79568.0,0.244485]
[1731251102792,0.00896,79569.0,79567.0,0.36461]
[1731251102793,0.062785,79568.0,79567.0,0.36461]
[1731251103000,0.062785,79568.0,79567.0,0.00313]
[1731251103494,0.00896,79569.0,79568.0,0.062785]
[1731251104192,0.00896,79569.0,79567.0,0.00313]
[1731251104403,0.00896,79569.0,79567.0,0.065916]
[1731251105189,0.00896,79569.0,79568.0,0.062785]
[1731251105389,0.00896,79569.0,79568.0,0.244685]
[1731251110195,0.00896,79569.0,79568.0,0.062785]
[1731251112707,0.01005,79570.0,79569.0,0.062785]
[1731251116803,0.072834,79570.0,79569.0,0.062785]
[1731251118001,0.01005,79570.0,79569.0,0.062785]
[1731251119494,0.072834,79570.0,79569.0,0.062785]
[1731251119904,0.01005,79570.0,79563.0,0.00188508]
[1731251120100,0.14772939,79564.0,79563.0,0.00188508]
[1731251123092,0.08494039,79564.0,79549.0,0.0628]
[1731251123292,0.14773439,79557.0,79549.0,0.0628]
[1731251123894,0.14773439,79557.0,79539.0,0.10034525]
[1731251124099,0.062806,79543.0,79534.0,0.21234647]
[1731251124299,0.08494039,79540.0,79534.0,0.02514647]
[1731251124606,0.08494039,79540.0,79539.0,0.062808]
[1731251124810,0.1837,79542.0,79541.0,0.062807]
[1731251125205,0.18381416,79542.0,79541.0,0.062807]
[1731251125407,0.00011416,79542.0,79541.0,0.062807]
[1731251125705,0.00011416,79542.0,79541.0,0.52490739]
[1731251125904,0.00900416,79542.0,79541.0,0.439967]
[1731251126802,0.00900416,79542.0,79541.0,0.46063106]
[1731251127713,0.04042416,79542.0,79541.0,0.46063106]
[1731251128607,0.04042416,79542.0,79541.0,0.54557145]
[1731251130109,0.04042416,79542.0,79541.0,0.16841145]
[1731251133107,0.1837,79560.0,79541.0,0.78276445]
[1731251133311,0.0008,79568.0,79567.0,0.062786]
[1731251133501,0.37034197,79576.0,79575.0,0.06278]
[1731251133705,0.3493,79576.0,79575.0,0.06278]
[1731251134713,0.062781,79574.0,79570.0,0.062784]
[1731251134905,0.062781,79574.0,79571.0,0.062783]
[1731251135102,0.062781,79574.0,79567.0,0.3608]
[1731251135310,0.062781,79574.0,79572.0,0.062782]
[1731251135810,0.3493,79576.0,79572.0,0.062782]
[1731251136002,0.062784,79571.0,79567.0,0.3608]
[1731251136204,0.3493,79576.0,79559.0,0.3608]
[1731251136205,0.3608,79570.0,79559.0,0.3608]
[1731251136407,0.3608,79570.0,79547.0,0.3608]
[1731251136408,0.062798,79552.0,79549.0,0.0628]
[1731251136614,0.062801,79549.0,79547.0,0.3608]
[1731251137009,0.37085,79548.0,79533.0,0.3608]
[1731251137318,0.03767548,79538.0,79533.0,0.3608]
[1731251137506,0.78544039,79537.0,79521.0,0.062822]
[1731251137708,0.062811,79536.0,79521.0,0.062822]
[1731251138009,0.062811,79536.0,79518.0,0.00013439]
[1731251138010,0.062817,79528.0,79518.0,0.00013439]
[1731251138209,0.50855739,79528.0,79518.0,0.00013439]
[1731251138410,0.062819,79526.0,79518.0,0.00013439]
[1731251138612,0.1727,79527.0,79518.0,0.00013439]
[1731251138813,0.1727,79527.0,79525.0,0.062819]
[1731251139217,0.1727,79527.0,79518.0,0.00013439]
[1731251139515,0.08494039,79520.0,79518.0,0.00013439]
[1731251140709,0.08494039,79526.0,79518.0,0.00013439]
[1731251141022,0.08494039,79526.0,79521.0,0.062822]
[1731251141213,0.1625,79525.0,79521.0,0.062822]
[1731251141413,0.1625,79525.0,79523.0,0.3608]
[1731251141713,0.1625,79525.0,79521.0,0.062822]
[1731251141926,0.1625,79525.0,79523.0,0.3608]
[1731251142618,0.1625,79525.0,79523.0,0.38594995]
[1731251143319,0.1625,79525.0,79523.0,0.02514995]
[1731251144424,0.1625,79525.0,79524.0,0.06282]
[1731251145710,0.1625,79525.0,79524.0,0.42362]
[1731251145910,0.24744039,79525.0,79523.0,0.02514995]
[1731251146123,0.24744039,79525.0,79524.0,0.3608]
[1731251146714,0.24744039,79525.0,79523.0,0.08797095]
[1731251146715,0.24744039,79525.0,79523.0,0.02514995]
[1731251148132,0.06282,79524.0,79523.0,0.02514995]
[1731251148522,0.24744039,79525.0,79523.0,0.02514995]
[1731251149218,0.1625,79525.0,79523.0,0.08797095]
[1731251149531,0.1727,79527.0,79524.0,0.06282]
[1731251149720,0.1727,79527.0,79525.0,0.062819]
[1731251150825,0.1276,79536.0,79523.0,0.02514995]
[1731251151037,0.1276,79536.0,79533.0,0.062813]
[1731251151331,0.062805,79544.0,79535.0,0.062811]
[1731251151520,0.062805,79544.0,79538.0,0.062809]
[1731251151521,0.1276,79544.0,79538.0,0.062809]
[1731251151722,0.062806,79542.0,79538.0,0.062809]
[1731251151933,0.08494039,79539.0,79538.0,0.062809]
[1731251153922,0.14774839,79539.0,79532.0,0.423613]
[1731251154123,0.08494039,79539.0,79532.0,0.3608]
[1731251154323,0.08494039,79539.0,79534.0,0.062812]
[1731251155130,0.08494039,79539.0,79535.0,0.062811]
[1731251155329,0.01577,79538.0,79536.0,0.062811]
[1731251155530,0.01577,79538.0,79532.0,0.3608]
[1731251155935,0.01577,79538.0,79534.0,0.062812]
[1731251156234,0.01577,79538.0,79535.0,0.062811]
[1731251156629,0.01573,79538.0,79535.0,0.062811]
[1731251157032,0.01573,79538.0,79532.0,0.3608]
[1731251157233,0.01573,79538.0,79536.0,0.062811]
[1731251159032,0.01573,79538.0,79537.0,0.14775039]
[1731251159642,0.1553,79558.0,79547.0,0.062802]
[1731251159847,0.062789,79564.0,79547.0,0.062802]
[1731251159848,0.062789,79564.0,79547.0,0.86934239]
[1731251160447,0.1553,79569.0,79553.0,0.062797]
[1731251160660,0.02080278,79570.0,79554.0,0.062796]
[1731251160955,0.02080278,79570.0,79569.0,0.3608]
[1731251161549,0.02514646,79577.0,79569.0,0.3608]
[1731251161853,0.02514646,79577.0,79576.0,0.3608]
[1731251162747,0.062778,79578.0,79576.0,0.3608]
[1731251162952,0.062765,79594.0,79576.0,0.3608]
[1731251163151,0.38204742,79596.0,79593.0,0.062766]
[1731251163758,0.38204742,79596.0,79587.0,0.3608]
[1731251163759,0.08682609,79595.0,79587.0,0.42357]
[1731251163949,0.08494039,79588.0,79587.0,0.3608]
[1731251164560,0.062767,79592.0,79587.0,0.3608]
[1731251164748,0.08494039,79588.0,79576.0,0.3608]
[1731251165055,0.08494039,79588.0,79574.0,0.06278]
[1731251165056,0.08494039,79582.0,79567.0,0.3608]
[1731251165251,0.062781,79574.0,79567.0,0.3608]
[1731251165851,0.062781,79574.0,79568.0,0.062785]
[1731251166054,0.062781,79574.0,79569.0,0.062784]
[1731251166258,0.08494039,79575.0,79567.0,0.3608]
[1731251166457,0.08494039,79575.0,79571.0,0.062783]
[1731251166665,0.062782,79573.0,79567.0,0.3608]
[1731251167160,0.062782,79573.0,79565.0,0.062787]
[1731251167347,0.062782,79573.0,79564.0,0.3608]
[1731251167548,0.08494039,79575.0,79568.0,0.062785]
[1731251167951,0.062782,79573.0,79564.0,0.423588]
[1731251168347,0.062782,79573.0,79564.0,0.3608]
[1731251168551,0.062782,79573.0,79566.0,0.062787]
[1731251168751,0.062783,79572.0,79566.0,0.062787]
[1731251168951,0.08494039,79569.0,79558.0,0.3608]
[1731251169154,0.12732,79575.0,79549.0,0.3608]
[1731251169155,0.062796,79555.0,79549.0,0.3608]
[1731251169554,0.08494039,79559.0,79549.0,0.3608]
[1731251169555,0.1575,79558.0,79549.0,0.3608]
[1731251169864,0.1575,79558.0,79548.0,0.00188542]
[1731251169865,0.3237,79558.0,79548.0,0.00188542]
[1731251170259,0.062795,79556.0,79549.0,0.0628]
[1731251170565,0.3237,79558.0,79549.0,0.0628]
[1731251170566,0.072846,79555.0,79549.0,0.0628]
[1731251170765,0.062797,79554.0,79548.0,0.00188542]
[1731251171562,0.01005,79555.0,79548.0,0.00188542]
[1731251172062,0.062797,79554.0,79548.0,0.00188542]
[1731251172874,0.062799,79551.0,79550.0,0.3608]
[1731251173258,0.01005,79555.0,79550.0,0.3608]
[1731251173454,0.01005,79555.0,79552.0,0.062798]
[1731251173659,0.01005,79555.0,79553.0,0.062797]
[1731251178659,0.062799,79551.0,79550.0,0.72224]
[1731251178866,0.062799,79551.0,79548.0,0.42548642]
[1731251179067,0.0628,79550.0,79548.0,0.36268542]
[1731251179467,0.0628,79550.0,79548.0,0.00188542]
[1731251180169,0.0628,79550.0,79541.0,0.3608]
[1731251180375,0.02121472,79551.0,79541.0,0.3608]
[1731251180671,0.062804,79545.0,79541.0,0.3608]
[1731251180871,0.44574039,79553.0,79532.0,0.3608]
[1731251180872,0.08494039,79546.0,79532.0,0.3608]
[1731251181059,0.062806,79542.0,79533.0,0.062813]
[1731251182075,0.3608,79544.0,79536.0,0.06281]
[1731251182276,0.062801,79548.0,79536.0,0.06281]
[1731251182470,0.062802,79547.0,79539.0,0.3608]
[1731251182689,0.12732,79549.0,79547.0,0.062802]
[1731251182974,0.12732,79549.0,79548.0,0.02514205]
[1731251183677,0.1663,79554.0,79550.0,0.062799]
[1731251184366,0.01005,79555.0,79548.0,0.01765962]
[1731251184569,0.01005,79555.0,79554.0,0.423596]
[1731251185369,0.01322,79555.0,79554.0,0.423596]
[1731251189571,0.01322,79555.0,79554.0,0.44873615]
[1731251189975,0.01322,79555.0,79554.0,0.08793615]
[1731251190377,0.01322,79555.0,79554.0,0.02514015]
[1731251190579,0.01322,79555.0,79554.0,0.08793615]
[1731251206499,0.076016,79555.0,79554.0,0.08793615]
[1731251206690,0.076016,79555.0,79554.0,0.02514015]
[1731251206894,0.0628,79549.0,79548.0,0.01765962]
[1731251207082,0.0628,79549.0,79548.0,0.08046062]
[1731251208986,0.02108116,79555.0,79548.0,0.01765962]
[1731251209190,0.062795,79556.0,79549.0,0.0628]
[1731251209389,0.062798,79554.0,79553.0,0.062797]
[1731251210193,0.062798,79552.0,79551.0,0.3608]
[1731251211598,0.1463,79553.0,79548.0,0.01765962]
[1731251211599,0.0628,79549.0,79548.0,0.01765962]
[1731251211790,0.14774824,79549.0,79548.0,0.01765962]
[1731251212382,0.14774824,79549.0,79534.0,0.062812]
[1731251212383,0.062809,79539.0,79534.0,0.062812]
[1731251212591,0.127,79551.0,79532.0,0.3608]
[1731251212592,0.062812,79535.0,79532.0,0.3608]
[1731251212899,0.1465,79534.0,79532.0,0.3608]
[1731251213092,0.062813,79533.0,79532.0,0.3608]
[1731251213799,0.062813,79533.0,79532.0,0.1411]
[1731251213996,0.062819,79526.0,79523.0,0.02514995]
[1731251214988,0.062814,79532.0,79525.0,0.062819]
[1731251215188,0.12704,79533.0,79523.0,0.38594995]
[1731251215397,0.12704,79533.0,79529.0,0.062816]
[1731251215702,0.0008,79538.0,79530.0,0.3608]
[1731251215997,0.02514025,79545.0,79534.0,0.3608]
[1731251216199,0.02514025,79545.0,79535.0,0.3608]
[1731251216401,0.02514025,79545.0,79538.0,0.062809]
[1731251216402,0.11008849,79545.0,79538.0,0.062809]
[1731251216587,0.11008849,79545.0,79534.0,0.062812]
[1731251216588,0.062808,79539.0,79534.0,0.062812]
[1731251216792,0.062808,79539.0,79536.0,0.062811]
[1731251216990,0.00316,79538.0,79536.0,0.062811]
[1731251217395,0.06597,79538.0,79536.0,0.062811]
[1731251217788,0.3608,79537.0,79536.0,0.062811]
[1731251217997,0.06597,79538.0,79536.0,0.062811]
[1731251218199,0.00316,79538.0,79537.0,0.06281]
[1731251222302,0.062815,79531.0,79530.0,0.00064]
[1731251222606,0.062815,79531.0,79530.0,0.062815]
[1731251222997,0.06281,79537.0,79529.0,0.02514805]
[1731251223194,0.13656,79538.0,79529.0,0.02514805]
[1731251223195,0.062811,79536.0,79529.0,0.02514805]
[1731251223394,0.062812,79535.0,79534.0,0.062812]
[1731251224903,0.08494824,79536.0,79529.0,0.02514805]
[1731251225104,0.062815,79530.0,79529.0,0.02514805]
[1731251229205,0.14776324,79530.0,79529.0,0.02514805]
[1731251230497,0.15781324,79530.0,79529.0,0.02514805]
[1731251235606,0.072865,79530.0,79529.0,0.02514805]
[1731251235807,0.072865,79530.0,79529.0,0.08796405]
[1731251235808,0.01005,79530.0,79529.0,0.08796405]
[1731251236405,0.01005,79530.0,79529.0,0.06231579]
[1731251237007,0.01005,79530.0,79529.0,0.50806403]
[1731251237611,0.00316,79538.0,79537.0,0.06281]
[1731251239020,0.00316,79538.0,79534.0,0.062812]
[1731251239204,0.08494824,79536.0,79529.0,0.36148]
[1731251239404,0.08494824,79536.0,79520.0,0.42152203]
[1731251239405,0.062815,79530.0,79526.0,0.062818]
[1731251239802,0.062815,79530.0,79520.0,0.49004609]
[1731251240011,0.062818,79528.0,79527.0,0.062818]
[1731251241013,0.08494824,79536.0,79520.0,0.36268609]
[1731251241208,0.062813,79533.0,79528.0,0.062817]
[1731251241512,0.062815,79531.0,79528.0,0.062817]
[1731251241906,0.08494824,79536.0,79523.0,0.08797095]
[1731251242111,0.14776824,79524.0,79523.0,0.08797095]
[1731251242305,0.08494824,79530.0,79524.0,0.06282]
[1731251242611,0.062817,79528.0,79524.0,0.06282]
[1731251243508,0.06282,79524.0,79523.0,0.02514995]
[1731251245111,0.14776424,79530.0,79523.0,0.08797095]
[1731251245409,0.062814,79532.0,79526.0,0.062818]
[1731251245615,0.08494824,79536.0,79526.0,0.062818]
[1731251245920,0.08494824,79536.0,79528.0,0.062817]
[1731251246221,0.00092,79537.0,79536.0,0.062811]
[1731251246409,0.3608,79545.0,79529.0,0.1269]
[1731251246410,0.02110556,79544.0,79529.0,0.1269]
[1731251246711,0.08494824,79536.0,79535.0,0.062811]
[1731251247617,0.062809,79539.0,79535.0,0.04451375]
[1731251247916,0.00317,79536.0,79535.0,0.04451375]
[1731251251216,0.00317,79536.0,79535.0,0.12946199]
[1731251251520,0.3608,79545.0,79544.0,0.062804]
[1731251252423,0.423604,79545.0,79544.0,0.062804]
[1731251253221,0.3608,79545.0,79544.0,0.062804]
[1731251255019,0.02104415,79558.0,79557.0,0.062794]
[1731251255620,0.3608,79560.0,79559.0,0.062793]
[1731251256518,0.3608,79560.0,79554.0,0.062796]
[1731251256715,0.062793,79559.0,79554.0,0.062796]
[1731251257123,0.062793,79559.0,79552.0,0.3608]
[1731251257319,0.3608,79560.0,79552.0,0.3608]
[1731251257527,0.3608,79560.0,79558.0,0.062793]
[1731251257824,0.3608,79560.0,79552.0,0.3608]
[1731251258021,0.08494824,79555.0,79552.0,0.3608]
[1731251258817,0.08494824,79555.0,79553.0,0.062797]
[1731251259122,0.3608,79560.0,79552.0,0.3608]
[1731251259327,0.3608,79560.0,79558.0,0.062793]
[1731251259623,0.3608,79560.0,79559.0,0.062793]
[1731251259929,0.062794,79557.0,79554.0,0.062796]
[1731251260125,0.08494824,79555.0,79554.0,0.062796]
[1731251261127,0.3608,79560.0,79559.0,0.062793]
[1731251262320,0.01005,79561.0,79560.0,0.062792]
[1731251262722,0.01005,79561.0,79560.0,0.423592]
[1731251262927,0.00188592,79571.0,79570.0,0.062784]
[1731251263220,0.36125,79585.0,79570.0,0.062784]
[1731251263221,0.36125,79585.0,79570.0,0.3608]
[1731251263433,0.08494824,79571.0,79559.0,0.3608]
[1731251263616,0.08494824,79571.0,79569.0,0.062784]
[1731251264333,0.3608,79575.0,79574.0,0.062781]
[1731251264830,0.01005,79576.0,79574.0,0.062781]
[1731251267327,0.00045,79585.0,79574.0,0.062781]
[1731251267532,0.00045,79585.0,79584.0,0.062773]
[1731251268121,0.3608,79594.0,79584.0,0.062773]
[1731251268437,0.0008,79604.0,79603.0,0.062758]
[1731251268732,0.08494824,79615.0,79603.0,0.062758]
[1731251268733,0.02512929,79612.0,79603.0,0.062758]
[1731251269126,0.02081398,79613.0,79603.0,0.062758]
[1731251269725,0.08494824,79615.0,79603.0,0.062758]
[1731251270023,0.14769724,79615.0,79603.0,0.062758]
[1731251270933,0.18999549,79615.0,79603.0,0.062758]
[1731251271227,0.02133448,79613.0,79603.0,0.062758]
[1731251272226,0.18999549,79615.0,79603.0,0.062758]
[1731251272431,0.12632,79618.0,79603.0,0.062758]
[1731251272631,0.423545,79620.0,79604.0,0.3608]
[1731251272632,0.02512929,79615.0,79604.0,0.3608]
[1731251273831,0.02512929,79615.0,79605.0,0.062756]
[1731251274025,0.02512929,79615.0,79604.0,0.3608]
[1731251274533,0.02512929,79615.0,79612.0,0.06275]
[1731251275232,0.3608,79620.0,79604.0,0.3608]
[1731251275432,0.0008,79623.0,79612.0,0.3608]
[1731251275635,0.02076074,79626.0,79613.0,0.06275]
[1731251275843,0.062738,79629.0,79624.0,0.062741]
[1731251276231,0.062738,79629.0,79612.0,0.3608]
[1731251276232,0.062738,79629.0,79625.0,0.06274]
[1731251276428,0.14447799,79631.0,79612.0,0.3608]
[1731251276630,0.14447799,79631.0,79629.0,0.062737]
[1731251276827,0.20721399,79631.0,79629.0,0.062737]
[1731251277933,0.186136,79631.0,79629.0,0.062737]
[1731251278143,0.1234,79631.0,79629.0,0.062737]
[1731251278850,0.12724649,79630.0,79624.0,0.062741]
[1731251279037,0.01004,79629.0,79624.0,0.062741]
[1731251281840,0.3608,79627.0,79624.0,0.08785905]